Cogmind - Beta 15 @@@ ROGUE MODE // 2025.05.27 @ 22:32:41 Player: obl-vn Result: Destroyed by P-80 Master with Gamma Rifle Performance ------------- Evolutions (9) 4500 Regions Visited (16) 3200 Robots Destroyed (9) 45 Value Destroyed (265) 265 Prototype IDs (1) 20 Alien Tech Used (0) 0 Bonus (700) 700 TOTAL SCORE: 8730 Bonus ------- Pacifist 200 Entered DSFs 500 Cogmind --------- Core Integrity 0/1600 Matter 132/300 Energy 98/100 System Corruption 2% Temperature Cool (0) Movement Core (50) Location -1/Access Parts ------- > --- POWER (3) -------- (None) > --- PROPULSION (10) -- (None) > --- UTILITY (10) ----- Machine Analyzer System Shield > --- WEAPON (2) ------- (None) > --- INVENTORY (5) ---- (None) Peak State ------------ > --- POWER ------------ Light Ion Engine > --- PROPULSION ------- Impulse Thruster Array Impulse Thruster Array Impulse Thruster Array Improved Q-thruster > --- UTILITY ---------- Advanced Cryofiber Web Machine Analyzer Graphene Brace System Shield Improved Corruption Screen Improved Corruption Screen Improved Corruption Screen > --- WEAPON ----------- (None) > --- INVENTORY -------- Improved Hacking Suite Mini Grenade Launcher Improved Plasma Cutter [Rating: 98] Favorites ----------- Power Light Ion Engine Engine Light Ion Engine Propulsion Impulse Thruster Array Treads Light Treads Leg Carbon-fiber Leg Flight Unit Impulse Thruster Array Utility Improved Corruption Screen Device Graphene Brace Processor Improved Corruption Screen Hackware System Shield Protection Improved Light Armor Plating Weapon Mini Grenade Launcher Launcher Mini Grenade Launcher Special Weapon Improved Plasma Cutter Build | -11 -10 -10 -9 -9 -8 -7 -7 -6 -5 -5 -4 -4 -4 -3 -2 -1 ------- Run | Yrd Mat Min Mat Sto Mat Fac DSF Fac Fac Ext Fac Was Fac Res Res Acc Slots Evolved 18 | . . . 2 . 2 2 . 2 2 . 2 . . 2 2 2 Power 2 | . . . . . . . . . . . . . . . . 2 Propulsion 8 | . . . 2 . 1 1 . 1 1 . 1 . . 1 . . Utility 8 | . . . . . 1 1 . 1 1 . 1 . . 1 2 . Weapon . | . . . . . . . . . . . . . . . . . Parts Attached 34 | . 2 . . 5 5 4 . . . . 3 . 4 3 6 2 Power 1 | . . . . . . . . . . . . . . . 1 . Engine 1 | . . . . . . . . . . . . . . . 1 . Core . | . . . . . . . . . . . . . . . . . Reactor . | . . . . . . . . . . . . . . . . . Propulsion 17 | . 2 . . 4 2 4 . . . . 1 . . . 4 . Treads 4 | . 2 . . 2 . . . . . . . . . . . . Leg 4 | . . . . 2 2 . . . . . . . . . . . Wheel . | . . . . . . . . . . . . . . . . . Hover . | . . . . . . . . . . . . . . . . . Flight 9 | . . . . . . 4 . . . . 1 . . . 4 . Utility 14 | . . . . . 3 . . . . . 2 . 4 3 1 1 Device 4 | . . . . . . . . . . . 2 . . 1 1 . Storage . | . . . . . . . . . . . . . . . . . Processor 7 | . . . . . 2 . . . . . . . 4 1 . . Hackware 2 | . . . . . . . . . . . . . . 1 . 1 Protection 1 | . . . . . 1 . . . . . . . . . . . Artifact . | . . . . . . . . . . . . . . . . . Weapon 2 | . . . . 1 . . . . . . . . . . . 1 Energy Gun . | . . . . . . . . . . . . . . . . . Energy Cannon . | . . . . . . . . . . . . . . . . . Ballistic Gun . | . . . . . . . . . . . . . . . . . Ballistic Cannon . | . . . . . . . . . . . . . . . . . Launcher 1 | . . . . 1 . . . . . . . . . . . . Special Weapon 1 | . . . . . . . . . . . . . . . . 1 Impact Weapon . | . . . . . . . . . . . . . . . . . Slashing Weapon . | . . . . . . . . . . . . . . . . . Piercing Weapon . | . . . . . . . . . . . . . . . . . Special Melee Weapon . | . . . . . . . . . . . . . . . . . Unidentified Prototypes 1 | . . . . . . . . . . . . . . . 1 . Parts Lost 25 | . . . . 1 1 . 3 . . 3 . . . 2 6 9 Power 1 | . . . . . . . . . . . . . . . 1 . Propulsion 11 | . . . . 1 1 . 3 . . 1 . . . . 2 3 Utility 11 | . . . . . . . . . . 2 . . . 2 3 4 Weapon 2 | . . . . . . . . . . . . . . . . 2 Highest Loss Streak 5 | . . . . 1 1 . 3 . . 3 . . . 2 3 5 To Critical Strikes . | . . . . . . . . . . . . . . . . . Average Backups 2 | 1 2 2 2 3 5 2 1 1 1 1 3 5 5 4 3 1 Power . | . . . . . . . . . . . . . . . . . Propulsion . | 1 2 2 2 2 4 1 . . . . . . . . . . Utility . | . . . . . . . . . . . 1 3 3 2 1 . Weapon . | . . . . . 1 1 1 1 1 1 1 1 1 . 1 . Tool/Special . | . . . . . . . . . . . . . . . . . Unused Backups . | . . . . . . . . . . . . . . . . . Power . | . . . . . . . . . . . . . . . . . Propulsion . | . . . . . . . . . . . . . . . . . Utility . | . . . . . . . . . . . . . . . . . Weapon . | . . . . . . . . . . . . . . . . . Tool/Special . | . . . . . . . . . . . . . . . . . Average Slot Usage (%) 32 | . 26 28 22 36 55 52 43 26 23 13 15 21 25 39 42 27 Treads 5 | . 26 28 22 21 21 2 . . . . . . . . . . Leg 2 | . . . . 15 15 1 . . . . . . . . . . Flight 5 | . . . . . . 25 20 6 5 2 5 5 5 3 9 5 Device 2 | . . . . . . . . . . . 4 10 10 10 4 3 Processor 11 | . . . . . 11 15 15 13 11 8 5 5 9 23 21 12 Hackware 1 | . . . . . . . . . . . . . . . 4 6 Protection 1 | . . . . . 6 7 7 6 5 2 . . . . . . Peak Build Rating 98 | . 2 2 2 6 19 16 13 10 10 10 24 24 48 55 98 78 Average Rating 28 | . 1 2 2 4 15 12 11 10 10 6 15 24 29 50 65 45 On Entrance 17 | . . 2 2 2 6 19 13 10 10 10 4 24 24 48 42 74 Naked Turns . | . . . . . . . . . . . . . . . . . Heaviest Build 6 | . . . . . 3 3 3 3 3 3 5 5 5 6 5 1 Greatest Support 57 | 3 3 3 3 3 15 8 16 4 4 4 6 6 6 6 57 41 Greatest Overweight (x) 1 | . . . . . . . . . . . 1 . . 1 . . Average Overweight (x) . | . . . . . . . . . . . . . . . . . Largest Inventory Capacity 5 | 5 5 5 5 5 5 5 5 5 5 5 5 5 5 5 5 5 Average Capacity 5 | 5 5 5 5 5 5 5 5 5 5 5 5 5 5 5 5 5 Most Carried 5 | 4 3 2 2 5 5 5 1 1 1 3 5 5 5 5 5 3 Average Carried 2 | 2 2 2 2 3 5 1 1 1 1 1 3 5 5 4 3 1 Final Capacity 5 | 5 5 5 5 5 5 5 5 5 5 5 5 5 5 5 5 5 Final Carried 5 | 4 2 2 2 5 5 1 1 1 1 3 5 5 5 4 3 . Class Distribution -------------------- 89% | Mutant 8% | Hacker-Mutant Dominant Class ---------------- Mutant | -10/Materials Mutant | -10/Mines Mutant | -9/Materials Mutant | -9/Storage Mutant | -8/Materials Mutant | -7/Factory Mutant | -7/DSF Mutant | -6/Factory Mutant | -5/Factory Mutant | -5/Extension Mutant | -4/Factory Mutant | -4/Waste Mutant | -4/Factory Mutant | -3/Research Mutant | -2/Research Hacker-Mutant | -1/Access Resources | -11 -10 -10 -9 -9 -8 -7 -7 -6 -5 -5 -4 -4 -4 -3 -2 -1 ----------- Run | Yrd Mat Min Mat Sto Mat Fac DSF Fac Fac Ext Fac Was Fac Res Res Acc Matter Collected 405 | 139 . . . 87 . . . 149 . . . . . . 30 . Remotely . | . . . . . . . . . . . . . . . . . Salvage Created 132 | . . . . 14 . . . . . . . . . 118 . . Parts 12 | . . . . 6 . . . . . . . . . 6 . . Haulers Intercepted . | . . . . . . . . . . . . . . . . . Recyclers Shooed . | . . . . . . . . . . . . . . . . . Parts Field Recycled . | . . . . . . . . . . . . . . . . . Retrieved Matter . | . . . . . . . . . . . . . . . . . Parts Self-Destructed . | . . . . . . . . . . . . . . . . . Prevented . | . . . . . . . . . . . . . . . . . Kills | -11 -10 -10 -9 -9 -8 -7 -7 -6 -5 -5 -4 -4 -4 -3 -2 -1 ------- Run | Yrd Mat Min Mat Sto Mat Fac DSF Fac Fac Ext Fac Was Fac Res Res Acc Combat Hostiles Destroyed 9 | . . . . 4 . . . . . . . . . 5 . . AOE 9 | . . . . 4 . . . . . . . . . 5 . . Classes Destroyed 1 | . . . . 1 . . . . . . . . . . . . Swarmer 9 | . . . . 4 . . . . . . . . . 5 . . Best Kill Streak 5 | . . . . 4 . . . . . . . . . 5 . . Combat Bots Only 5 | . . . . 4 . . . . . . . . . 5 . . Max Kills in Single Turn 3 | . . . . 2 . . . . . . . . . 3 . . Gunslinging . | . . . . . . . . . . . . . . . . . Exploded 3 | . . . . 2 . . . . . . . . . 3 . . Melee . | . . . . . . . . . . . . . . . . . Uniques/NPCs Destroyed . | . . . . . . . . . . . . . . . . . Combat | -11 -10 -10 -9 -9 -8 -7 -7 -6 -5 -5 -4 -4 -4 -3 -2 -1 -------- Run | Yrd Mat Min Mat Sto Mat Fac DSF Fac Fac Ext Fac Was Fac Res Res Acc Hostile Shots Fired 480 | . 6 11 . 72 50 1 12 2 . 39 10 . 2 49 84 142 Missed 210 | . 1 5 . 29 21 . 4 1 . 16 6 . 2 23 39 63 Hits 270 | . 5 6 . 43 29 1 8 1 . 23 4 . . 26 45 79 Melee 1 | . . . . 1 . . . . . . . . . . . . Projectile 269 | . 5 6 . 42 29 1 8 1 . 23 4 . . 26 45 79 Critical Strikes 13 | . 1 . . 1 . . 1 . . . 1 . . 1 2 6 Actively Blocked 7 | . . . . . . . . . . . . . . 1 2 4 Part Disruptions 1 | . . . . . . . . . . . . . . . 1 . Damage Taken 5771 | . 108 53 . 507 497 17 256 18 . 558 85 . 4 568 1005 2095 Core 3405 | . 28 38 . 108 115 . 119 . . 492 59 . . 422 415 1609 Absorbed by Shields 7 | . . . . . . . . . . . . . . . . 7 Core Remaining (%) 79 | 100 . 73 . 73 79 . 83 100 . 50 . . 94 67 71 . Volleys Fired 9 | . . . . 4 . . . . . . . . . 2 . 3 Largest 1 | . . . . 1 . . . . . . . . . 1 . 1 Hottest 30 | . . . . 30 . . . . . . . . . 30 . 30 Shots Fired 9 | . . . . 4 . . . . . . . . . 2 . 3 Gun . | . . . . . . . . . . . . . . . . . Cannon . | . . . . . . . . . . . . . . . . . Launcher 9 | . . . . 4 . . . . . . . . . 2 . 3 Special . | . . . . . . . . . . . . . . . . . Kinetic . | . . . . . . . . . . . . . . . . . Thermal . | . . . . . . . . . . . . . . . . . Explosive 9 | . . . . 4 . . . . . . . . . 2 . 3 Electromagnetic . | . . . . . . . . . . . . . . . . . Robot Hit Streak 2 | . . . . . . . . . . . . . . 2 . . Robot Miss Streak 2 | . . . . 2 . . . . . . . . . . . . Penetration Max . | . . . . . . . . . . . . . . . . . Secondary Targets . | . . . . . . . . . . . . . . . . . Shots Hit Robots 2 | . . . . . . . . . . . . . . 2 . . Core Hits 11 | . . . . 4 . . . . . . . . . 7 . . Critical Kills . | . . . . . . . . . . . . . . . . . Critical Parts Destroyed . | . . . . . . . . . . . . . . . . . Critical Strikes . | . . . . . . . . . . . . . . . . . Melee Attacks . | . . . . . . . . . . . . . . . . . Impact . | . . . . . . . . . . . . . . . . . Slashing . | . . . . . . . . . . . . . . . . . Piercing . | . . . . . . . . . . . . . . . . . Sneak Attacks . | . . . . . . . . . . . . . . . . . Combat Hostiles . | . . . . . . . . . . . . . . . . . Follow-up Attacks . | . . . . . . . . . . . . . . . . . Damage Inflicted 660 | . . . . 252 . . . . . . . . 8 396 . 4 Guns . | . . . . . . . . . . . . . . . . . Cannons . | . . . . . . . . . . . . . . . . . Explosions 648 | . . . . 252 . . . . . . . . . 396 . . Melee . | . . . . . . . . . . . . . . . . . Ramming 12 | . . . . . . . . . . . . . 8 . . 4 Kinetic . | . . . . . . . . . . . . . . . . . Thermal . | . . . . . . . . . . . . . . . . . Explosive 648 | . . . . 252 . . . . . . . . . 396 . . Electromagnetic . | . . . . . . . . . . . . . . . . . Impact . | . . . . . . . . . . . . . . . . . Slashing . | . . . . . . . . . . . . . . . . . Piercing . | . . . . . . . . . . . . . . . . . Highest Corruption 5 | . . . . . 1 . . . . . . 5 5 . . 2 Average Corruption 3 | . . . . . 1 . . . . . . 5 5 . . 1 Corruption Purged . | . . . . . . . . . . . . . . . . . Corruption Blocked 3 | . . . . . . . . . . . . . . . . 3 Effects 3 | . . . . . 1 . . . . . . 1 1 . . . Matter Fused 2 | . . . . . . . . . . . . 1 1 . . . Heat Flow Errors 1 | . . . . . 1 . . . . . . . . . . . Overload Shots . | . . . . . . . . . . . . . . . . . Overflow Damage 12 | . . . . . . . . . . . . . . . . 12 Projectiles . | . . . . . . . . . . . . . . . . . Explosions 12 | . . . . . . . . . . . . . . . . 12 Melee . | . . . . . . . . . . . . . . . . . Knockbacks . | . . . . . . . . . . . . . . . . . Impact . | . . . . . . . . . . . . . . . . . Kinetic . | . . . . . . . . . . . . . . . . . Secondary . | . . . . . . . . . . . . . . . . . Self-Inflicted Damage 95 | . . . . 34 . . . . . . . . 4 . . 57 Shots 3 | . . . . 2 . . . . . . . . . . . 1 Rammed 2 | . . . . . . . . . . . . . 1 . . 1 Targets Rammed 2 | . . . . . . . . . . . . . 1 . . 1 Kicked . | . . . . . . . . . . . . . . . . . Crushed . | . . . . . . . . . . . . . . . . . Highest Temperature 8 | . 8 . . 8 . . . . . . . . . . . . Average Temperature 8 | . 8 . . 8 . . . . . . . . . . . . Received Heat Transfer 735 | . 51 . . 189 144 9 54 9 . 69 12 . . 30 72 96 Siege Activations . | . . . . . . . . . . . . . . . . . Martial Activations . | . . . . . . . . . . . . . . . . . Shielding Activations . | . . . . . . . . . . . . . . . . . Robots Disrupted . | . . . . . . . . . . . . . . . . . Combat Hostiles . | . . . . . . . . . . . . . . . . . Robots Corrupted . | . . . . . . . . . . . . . . . . . Combat Hostiles . | . . . . . . . . . . . . . . . . . Parts Fried . | . . . . . . . . . . . . . . . . . Impact Corruptions . | . . . . . . . . . . . . . . . . . Robots Melted . | . . . . . . . . . . . . . . . . . Combat Hostiles . | . . . . . . . . . . . . . . . . . Parts Melted . | . . . . . . . . . . . . . . . . . Heat Transferred . | . . . . . . . . . . . . . . . . . Parts Sabotaged . | . . . . . . . . . . . . . . . . . Parts Stolen . | . . . . . . . . . . . . . . . . . Parts Stripped . | . . . . . . . . . . . . . . . . . Power Chain Reactions . | . . . . . . . . . . . . . . . . . Alert | -11 -10 -10 -9 -9 -8 -7 -7 -6 -5 -5 -4 -4 -4 -3 -2 -1 ------- Run | Yrd Mat Min Mat Sto Mat Fac DSF Fac Fac Ext Fac Was Fac Res Res Acc Maximum Alert Level . | . . . . . . . . . . . . . . . . . Low Security (%) 100 | 100 100 100 100 100 100 100 100 100 100 100 100 100 100 100 100 100 Level 1 . | . . . . . . . . . . . . . . . . . Level 2 . | . . . . . . . . . . . . . . . . . Level 3 . | . . . . . . . . . . . . . . . . . Level 4 . | . . . . . . . . . . . . . . . . . Level 5 . | . . . . . . . . . . . . . . . . . High Security . | . . . . . . . . . . . . . . . . . Max Security . | . . . . . . . . . . . . . . . . . Peak Influence 175 | . 15 16 1 155 71 21 11 . . 45 45 5 . 153 175 96 Initial 96 | . . 1 1 . 71 11 11 . . . 21 5 . . 80 96 Average 41 | . 2 6 1 96 38 11 2 . . 2 13 3 . 46 91 61 Influence Increases 964 | . 15 15 . 220 34 35 . . . 45 45 . . 153 270 132 Destroy 0b10 Robot/C 180 | . . . . 80 . . . . . . . . . 100 . . Destroy Leader 20 | . . . . 10 . . . . . . . . . 10 . . Successful Hack 13 | . . . . 4 4 5 . . . . . . . . . . Disable Machine 15 | . . . . 15 . . . . . . . . . . . . Destroy Structure 76 | . . . . 21 . . . . . . . . . 28 . 27 Lose Combat Pursuer 660 | . 15 15 . 90 30 30 . . . 45 45 . . 15 270 105 Influence Decreases 926 | . 10 14 5 51 179 44 16 . . . 75 15 . 10 253 254 Entered New Map 289 | . . 4 5 1 99 14 5 . . . 24 10 . . 63 64 Time Decay 456 | . 10 10 . 40 70 30 . . . . 51 5 . 10 130 100 Lost Part 181 | . . . . 10 10 . 11 . . . . . . . 60 90 Squads Dispatched 13 | . 1 . . 2 1 . 1 1 . . 2 . . . 1 4 Investigation 2 | . . . . . . . . . . . . . . . . 2 Extermination 2 | . . . . . . . . . . . . . . . 1 1 Reinforcement 9 | . 1 . . 2 1 . 1 1 . . 2 . . . . 1 Assault . | . . . . . . . . . . . . . . . . . Garrison . | . . . . . . . . . . . . . . . . . Intercept . | . . . . . . . . . . . . . . . . . Searches Triggered . | . . . . . . . . . . . . . . . . . Construction Impeded . | . . . . . . . . . . . . . . . . . Haulers Reinforced . | . . . . . . . . . . . . . . . . . Active Scanning Responses . | . . . . . . . . . . . . . . . . . Cargo Convoy Interrupts . | . . . . . . . . . . . . . . . . . Stealth | -11 -10 -10 -9 -9 -8 -7 -7 -6 -5 -5 -4 -4 -4 -3 -2 -1 --------- Run | Yrd Mat Min Mat Sto Mat Fac DSF Fac Fac Ext Fac Was Fac Res Res Acc Distress Signals 9 | . 1 . . 2 1 . . . . . 1 . . 2 2 . Communications Jammed . | . . . . . . . . . . . . . . . . . Distress Signals . | . . . . . . . . . . . . . . . . . Times Spotted 139 | . 4 3 . 20 16 2 6 5 . 7 8 5 1 21 27 14 Peak Tracking Total 14 | . 4 3 . 12 12 2 6 4 . 7 4 5 1 14 13 7 Tactical Retreats 20 | . 1 1 . 2 2 1 . . . 1 1 . . 1 6 4 Traps | -11 -10 -10 -9 -9 -8 -7 -7 -6 -5 -5 -4 -4 -4 -3 -2 -1 ------- Run | Yrd Mat Min Mat Sto Mat Fac DSF Fac Fac Ext Fac Was Fac Res Res Acc Traps Triggered 7 | . 1 . . . 1 . . . . . 2 . . . . 3 Indirectly . | . . . . . . . . . . . . . . . . . Trap Hack Attempts . | . . . . . . . . . . . . . . . . . Triggered . | . . . . . . . . . . . . . . . . . Disarmed . | . . . . . . . . . . . . . . . . . Reprogrammed . | . . . . . . . . . . . . . . . . . Reused . | . . . . . . . . . . . . . . . . . Traps Extracted . | . . . . . . . . . . . . . . . . . Installed . | . . . . . . . . . . . . . . . . . Triggered . | . . . . . . . . . . . . . . . . . Machines | -11 -10 -10 -9 -9 -8 -7 -7 -6 -5 -5 -4 -4 -4 -3 -2 -1 ---------- Run | Yrd Mat Min Mat Sto Mat Fac DSF Fac Fac Ext Fac Was Fac Res Res Acc Machines Disabled 1 | . . . . 1 . . . . . . . . . . . . Max in Single Turn 1 | . . . . 1 . . . . . . . . . . . . Garrison Access 1 | . . . . . . . . . . . . . . . . 1 Machines Repaired . | . . . . . . . . . . . . . . . . . Machines Dismantled . | . . . . . . . . . . . . . . . . . Machines Sabotaged . | . . . . . . . . . . . . . . . . . Overloaded Fab Kills . | . . . . . . . . . . . . . . . . . Hacking | -11 -10 -10 -9 -9 -8 -7 -7 -6 -5 -5 -4 -4 -4 -3 -2 -1 --------- Run | Yrd Mat Min Mat Sto Mat Fac DSF Fac Fac Ext Fac Was Fac Res Res Acc Machines Accessed 7 | . . 1 . 1 1 1 . . . . . . . . 1 2 Terminals 5 | . . . . 1 1 1 . . . . . . . . 1 1 Fabricators . | . . . . . . . . . . . . . . . . . Repair Stations . | . . . . . . . . . . . . . . . . . Recycling Units . | . . . . . . . . . . . . . . . . . Scanalyzers . | . . . . . . . . . . . . . . . . . Garrison Access 1 | . . . . . . . . . . . . . . . . 1 Total Hacks 13 | . . 1 . 1 5 1 . . . . . . . . 1 4 Successful 6 | . . 1 . 1 1 1 . . . . . . . . 1 1 Failed 7 | . . . . . 4 . . . . . . . . . . 3 Catastrophic 1 | . . . . . . . . . . . . . . . . 1 Database Lockouts . | . . . . . . . . . . . . . . . . . Manual 3 | . . . . . 3 . . . . . . . . . . . Terminals 11 | . . . . 1 5 1 . . . . . . . . 1 3 Fabricators . | . . . . . . . . . . . . . . . . . Repair Stations . | . . . . . . . . . . . . . . . . . Recycling Units . | . . . . . . . . . . . . . . . . . Scanalyzers . | . . . . . . . . . . . . . . . . . Garrison Access 1 | . . . . . . . . . . . . . . . . 1 Terminal Hacks 5 | . . 1 . 1 1 1 . . . . . . . . 1 . Open Door 2 | . . 1 . 1 . . . . . . . . . . . . Open DSF 2 | . . . . . . 1 . . . . . . . . 1 . Emergency Access Points 1 | . . . . . 1 . . . . . . . . . . . Fabricator Hacks . | . . . . . . . . . . . . . . . . . Repair Station Hacks . | . . . . . . . . . . . . . . . . . Recycling Unit Hacks . | . . . . . . . . . . . . . . . . . Scanalyzer . | . . . . . . . . . . . . . . . . . Garrison Access Hacks 1 | . . . . . . . . . . . . . . . . 1 Seal Access 1 | . . . . . . . . . . . . . . . . 1 Unauthorized Hacks . | . . . . . . . . . . . . . . . . . Terminals . | . . . . . . . . . . . . . . . . . Fabricators . | . . . . . . . . . . . . . . . . . Repair Stations . | . . . . . . . . . . . . . . . . . Recycling Units . | . . . . . . . . . . . . . . . . . Scanalyzers . | . . . . . . . . . . . . . . . . . Garrison Access . | . . . . . . . . . . . . . . . . . Data Cores Recovered . | . . . . . . . . . . . . . . . . . Used . | . . . . . . . . . . . . . . . . . Hacking Detections 3 | . . . . . 1 1 . . . . . . . . . 1 Full Trace Events 2 | . . . . . 1 . . . . . . . . . . 1 Feedback Events 1 | . . . . . . . . . . . . . . . . 1 Corruption 1 | . . . . . . . . . . . . . . . . 1 Feedback Blocked . | . . . . . . . . . . . . . . . . . Robot Schematics Acquired . | . . . . . . . . . . . . . . . . . Robots Built . | . . . . . . . . . . . . . . . . . Authchips . | . . . . . . . . . . . . . . . . . Time . | . . . . . . . . . . . . . . . . . Total Robot Build Rating . | . . . . . . . . . . . . . . . . . Part Schematics Acquired . | . . . . . . . . . . . . . . . . . Parts Built . | . . . . . . . . . . . . . . . . . Authchips . | . . . . . . . . . . . . . . . . . Time . | . . . . . . . . . . . . . . . . . Total Part Build Rating . | . . . . . . . . . . . . . . . . . Parts Repaired . | . . . . . . . . . . . . . . . . . Time . | . . . . . . . . . . . . . . . . . Parts Recycled . | . . . . . . . . . . . . . . . . . Recycled Matter . | . . . . . . . . . . . . . . . . . Retrieved Matter . | . . . . . . . . . . . . . . . . . Retrieved Components . | . . . . . . . . . . . . . . . . . Parts Scanalyzed . | . . . . . . . . . . . . . . . . . Part Schematics Acquired . | . . . . . . . . . . . . . . . . . Parts Damaged . | . . . . . . . . . . . . . . . . . Bothacking | -11 -10 -10 -9 -9 -8 -7 -7 -6 -5 -5 -4 -4 -4 -3 -2 -1 ------------ Run | Yrd Mat Min Mat Sto Mat Fac DSF Fac Fac Ext Fac Was Fac Res Res Acc Used RIF Installer . | . . . . . . . . . . . . . . . . . Robots Hacked . | . . . . . . . . . . . . . . . . . Non-combat . | . . . . . . . . . . . . . . . . . Combat . | . . . . . . . . . . . . . . . . . Robot Hacks Applied . | . . . . . . . . . . . . . . . . . Relay Couplers Released . | . . . . . . . . . . . . . . . . . Fabnet Peak Effective % . | . . . . . . . . . . . . . . . . . Robots Rewired . | . . . . . . . . . . . . . . . . . Allies Hacked . | . . . . . . . . . . . . . . . . . Hacks Repelled . | . . . . . . . . . . . . . . . . . Allies | -11 -10 -10 -9 -9 -8 -7 -7 -6 -5 -5 -4 -4 -4 -3 -2 -1 -------- Run | Yrd Mat Min Mat Sto Mat Fac DSF Fac Fac Ext Fac Was Fac Res Res Acc Total Allies 1 | . . . . . . . . . . . . 1 . . . . Largest Group 1 | . . . . . . . . . . . . 1 . . . . Highest-Rated Group 46 | . . . . . . . . . . . . 46 . . . . Highest-Rated Ally 46 | . . . . . . . . . . . . 46 . . . . Total Orders . | . . . . . . . . . . . . . . . . . Ally Attacks . | . . . . . . . . . . . . . . . . . Total Damage . | . . . . . . . . . . . . . . . . . Kills . | . . . . . . . . . . . . . . . . . Allies Corrupted . | . . . . . . . . . . . . . . . . . Allies Melted . | . . . . . . . . . . . . . . . . . Intel | -11 -10 -10 -9 -9 -8 -7 -7 -6 -5 -5 -4 -4 -4 -3 -2 -1 ------- Run | Yrd Mat Min Mat Sto Mat Fac DSF Fac Fac Ext Fac Was Fac Res Res Acc Active Infowar (turns) 1172 | . . . . . 84 61 28 73 17 88 191 27 37 89 268 209 Optics 812 | . . . . . 84 61 28 73 17 88 191 27 37 89 117 . Sensors 21 | . . . . . . . . . . . 21 . . . . . Machine Analysis 484 | . . . . . . . . . . . . . . 7 268 209 Robot Analysis Total . | . . . . . . . . . . . . . . . . . Derelict Logs Recovered . | . . . . . . . . . . . . . . . . . Drone Launches . | . . . . . . . . . . . . . . . . . Drone Recoveries . | . . . . . . . . . . . . . . . . . Exploration | -11 -10 -10 -9 -9 -8 -7 -7 -6 -5 -5 -4 -4 -4 -3 -2 -1 ------------- Run | Yrd Mat Min Mat Sto Mat Fac DSF Fac Fac Ext Fac Was Fac Res Res Acc Turns Passed 1459 | 17 65 33 8 98 150 61 28 73 17 88 191 27 37 89 268 209 Spaces Moved 3138 | 26 125 65 15 153 283 149 80 183 43 190 414 66 75 191 668 412 Core 981 | 26 125 65 15 153 282 . . . . 98 2 . . 15 5 195 Treads . | . . . . . . . . . . . . . . . . . Legs 1 | . . . . . 1 . . . . . . . . . . . Wheels . | . . . . . . . . . . . . . . . . . Hover . | . . . . . . . . . . . . . . . . . Flight 2156 | . . . . . . 149 80 183 43 92 412 66 75 176 663 217 Fastest Speed 31 | 50 50 50 50 50 50 37 31 40 40 40 40 40 40 40 33 37 Average Speed 42 | 50 50 50 50 50 50 37 34 40 40 45 40 40 40 41 38 43 Slowest Speed 120 | 50 50 50 50 50 120 37 40 40 40 50 100 40 40 100 50 50 Overloaded Moves . | . . . . . . . . . . . . . . . . . Propulsion Burnouts . | . . . . . . . . . . . . . . . . . Robots Hopped 13 | . . . . . . . 1 1 . . 3 . . . 3 5 Potential Cave-ins . | . . . . . . . . . . . . . . . . . Cave-ins Triggered . | . . . . . . . . . . . . . . . . . Exploration Rate (%) 26 | 3 44 22 4 43 46 9 85 8 2 42 22 73 3 10 23 13 Regions Visited 16 Branch Regions 3 Pre-discovered Areas . | . . . . . . . . . . . . . . . . . Known Exits Taken 4 | . . . . . 1 1 . 1 1 . . . . . . . Unknown Exits Taken 9 | 1 1 1 1 1 . . . . . 1 . . 1 1 1 . Scrap Searched . | . . . . . . . . . . . . . . . . . Spaces Dug 13 | . . . . . . . . . . . . . . . . 13 Terrain Destroyed 48 | . . . . 20 . . . . . . . . . 15 . 13 Melee . | . . . . . . . . . . . . . . . . . Projectile . | . . . . . . . . . . . . . . . . . AOE 48 | . . . . 20 . . . . . . . . . 15 . 13 Terrain Rammed . | . . . . . . . . . . . . . . . . . Walls Destroyed . | . . . . . . . . . . . . . . . . . Machines Disabled . | . . . . . . . . . . . . . . . . . Actions | -11 -10 -10 -9 -9 -8 -7 -7 -6 -5 -5 -4 -4 -4 -3 -2 -1 --------- Run | Yrd Mat Min Mat Sto Mat Fac DSF Fac Fac Ext Fac Was Fac Res Res Acc Total 3218 | 29 126 64 14 170 288 156 78 181 42 191 435 65 79 198 674 428 Wait . | . . . . . . . . . . . . . . . . . Move 3099 | 25 124 64 14 152 282 148 77 180 42 189 408 65 75 190 661 403 Hop 12 | . . . . . . . 1 1 . . 3 . . . 3 4 Pick Up 21 | 4 . . . 7 . . . . . 2 5 . . . 3 . Fast Attach 12 | . . . . . 4 . . . . . . . 4 1 3 . Attach 25 | . 2 . . 4 . 4 . . . . 3 . . 3 4 5 Detach 5 | . . . . 1 . . . . . . . . . 2 . 2 Swap 2 | . . . . 1 1 . . . . . . . . . . . Drop 6 | . . . . 1 1 4 . . . . . . . . . . Fire 9 | . . . . 4 . . . . . . . . . 2 . 3 Melee . | . . . . . . . . . . . . . . . . . Ram 1 | . . . . . . . . . . . . . . . . 1 Kick . | . . . . . . . . . . . . . . . . . Crush . | . . . . . . . . . . . . . . . . . Escape Stasis 21 | . . . . . . . . . . . 16 . . . . 5 Rewire . | . . . . . . . . . . . . . . . . . Trap . | . . . . . . . . . . . . . . . . . Miscellaneous 5 | . . . . . . . . . . . . . . . . 5 Route ------- -11/Scrapyard -10/Materials -10/Mines -9/Materials -9/Storage -8/Materials -7/Factory -7/DSF -6/Factory -5/Factory -5/Extension (discovered 2 exits: [*Fac] / [*Cet]) -4/Factory -4/Waste -4/Factory -3/Research -2/Research -1/Access History --------- Turn | Location | Event 6 | -11/Scrapyard | Discovered new exit (range 14) 18 | -11/Scrapyard | Entered Materials 75 | -10/Materials | Discovered new exit (range 16) 83 | -10/Materials | Entered Mines 96 | -10/Mines | Met a Derelict shopkeep closing up shop 111 | -10/Mines | Discovered new exit (range 9) 116 | -10/Mines | Entered Materials 116 | -9/Materials | Evolved 2 slots: Propulsion x2 116 | -9/Materials | Discovered new exit (range 15) 124 | -9/Materials | Entered Storage 215 | -9/Storage | Discovered new exit (range 15) 222 | -9/Storage | Entered Materials 222 | -8/Materials | Evolved 2 slots: Propulsion x1, Utility x1 309 | -8/Materials | Build established: Mutant 362 | -8/Materials | Discovered new exit (range 20) 371 | -8/Materials | Identified exit to Factory 372 | -8/Materials | Entered Factory 372 | -7/Factory | Evolved 2 slots: Propulsion x1, Utility x1 433 | -7/Factory | Identified exit to DSF 433 | -7/Factory | Entered DSF 434 | -7/DSF | Joined Warlord attack on 0b10 via DSF 455 | -7/DSF | Additional patrols routed to DSF 456 | -7/DSF | Discovered new exit (range 15) 460 | -7/DSF | Identified exit to Factory 461 | -7/DSF | Entered Factory 461 | -6/Factory | Evolved 2 slots: Propulsion x1, Utility x1 490 | -6/Factory | Lost 3 parts (3n) 533 | -6/Factory | Discovered new exit (range 3) 534 | -6/Factory | Identified exit to Factory 534 | -6/Factory | Entered another Factory area 534 | -5/Factory | Evolved 2 slots: Propulsion x1, Utility x1 544 | -5/Factory | 12 allies followed out of DSF 547 | -5/Factory | Discovered new exit (range 12) 551 | -5/Factory | Identified exit to Extension 551 | -5/Factory | Entered Extension 580 | -5/Extension | Spotted B-75 Beast 582 | -5/Extension | Spotted B-75 Beast 622 | -5/Extension | Lost 3 parts (1n2u) 627 | -5/Extension | Discovered new exit (range 20) 627 | -5/Extension | Discovered new exit (range 20) 639 | -5/Extension | Entered Factory 639 | -4/Factory | Evolved 2 slots: Propulsion x1, Utility x1 830 | -4/Factory | Sucked down chute 830 | -4/Factory | Entered Waste 831 | -4/Waste | Met a frightened Derelict 844 | -4/Waste | Spotted C-40 Crusher 845 | -4/Waste | EMP discharged 846 | -4/Waste | Spotted C-40 Crusher 849 | -4/Waste | Spotted C-40 Crusher 849 | -4/Waste | Discovered new exit (range 19) 851 | -4/Waste | Spotted C-40 Crusher 852 | -4/Waste | Spotted C-40 Crusher 857 | -4/Waste | Entered Factory 892 | -4/Factory | Discovered new exit (range 3) 894 | -4/Factory | Entered Research 894 | -3/Research | Evolved 2 slots: Propulsion x1, Utility x1 959 | -3/Research | Spotted B-86 Titan 972 | -3/Research | Discovered new exit (range 19) 983 | -3/Research | Entered another Research area 983 | -2/Research | Evolved 2 slots: Utility x2 1144 | -2/Research | Lost 3 parts (1n2u) 1245 | -2/Research | Lost 3 parts (1p1n1u) 1246 | -2/Research | Discovered new exit (range 13) 1251 | -2/Research | Entered Access 1251 | -1/Access | Evolved 2 slots: Power x2 1372 | -1/Access | Lost 4 parts (3n1u) 1391 | -1/Access | Spotted B-99 Colossus 1413 | -1/Access | Core integrity fell below 50% 1446 | -1/Access | Core integrity fell below 20% 1460 | -1/Access | Destroyed by P-80 Master with Gamma Rifle Last Messages --------------- 01434_ Dismantling Sealed Barrier with Imp. Plasma Cutter. 01435_ Penetrated by Slug. 01435_ Imp. Corruption Screen destroyed. 01435_ Slug penetrates Sealed Barrier. 01437_ Imp. Plasma Cutter destroyed. 01437_ Slug penetrates Wall. 01437_ Penetrated by Slug. 01439_ Wall collapses. 01439_ Penetrated by Slug. 01440_ Slug penetrates Sealed Barrier. 01442_ Penetrated by Slug. 01448_ Mni. Grenade Launcher destroyed. 01448_ Destroyed Mni. Grenade Launcher. 01448_ >> Machine Analyzer network decryption results: 01448_ Scanalyzer x2 01449_ Penetrated by Slug. 01452_ Slug penetrates Wall. 01454_ Slug penetrates Scanalyzer. Map ----- +----------------------------------------------------+ | =% #??????????????????????????????????????? | | #??????????????????????????????????????? | | #??????????????????????????????????????? | | +??????????????????????????????????????? | | #####" #??????????????????????????????????????? | | #????# #??????????????????????????????????????? | | #????? #??????????????????????????????????????? | | #?????? ?????????????????????????????????????? | | #?????? #???????????????????????????????????? | | #??????? #???????????????????????????????????? | | #??????? #???????????????????????????????????? | | #???????? #???????????????????????????????????? | | #???????? #???????????????????????????????????? | | #????????? #???????????????????????????????????? | | #?????????"""#???????????????????????????????????? | | #??????????????###########???????????????????????? | | #??????????????# ! #???????????????????????? | | #??????????????# #???????????????????????? | | #??????????????# "" #???????????????????????? | | #??????????????# "" #???????????????????????? | | #??????????????# S" #???????????????????????? | | #??????????????# """ #???????????????????????? | | #??????????????# """ #???#???????????????????? | | #??????????????# """ ###w##??????????????????? | | #??????????????# # ####???????????????? | | #????????????###[ @ #???????????? | | #????????????# # " #???????????? | | #?"""""""""""" p # k ########???????????? | | #?#"" hh##########? ##??????????????????? | | #?#"" #?????????? #???????????????????? | | #?#"" #??????????? #???????????????????? | | ??#T ####??????????? +???????????????????? | | ??#" #???????????????#???????????????????? | | ??#"" #???????????????????????????????????? | | ###"" "#??????????????????????????????????? | | ????????????????????????????? | | ????????????????????????????? | | ####################?????????????????????????????? | | ?????????????????????????????????????????????????? | | ?????????????????????????????????????????????????? | | ?????????????????????????????????????????????????? | | ?????????????????????????????????????????????????? | | ?????????????????????????????????????????????????? | | ?????????????????????????????????????????????????? | | ?????????????????????????????????????????????????? | | ?????????????????????????????????????????????????? | | ?????????????????????????????????????????????????? | | ?????????????????????????????????????????????????? | | ?????????????????????????????????????????????????? | | ?????????????????????????????????????????????????? | +----------------------------------------------------+ Best States ------------- Heat Dissipation 52 Energy Generation 10 Energy Capacity 125 Matter Stores 300 Matter Capacity 300 Sight Range 20 Robot Scan Range 18 Terrain Scan Density 10 Corruption Block 60 Armor Coverage 150 Evasion (%) 74 Recoil Reduction 2 Offensive Hacking 12 Defensive Hacking 10 Item Schematics ----------------- None Robot Schematics ------------------ None Fabricated ------------ Nothing Repaired ---------- Nothing Alien Tech Used ----------------- None Achievements -------------- None Challenges ------------ None Game ------ Seed DeuteriumThiefCarapace Manual? 0 Play Time 00:35:16 Cumulative 53.2 hours Start 2025.05.27 @ 21:56:47 End 2025.05.27 @ 22:32:41 Sessions 1 Manual Loads 0 Difficulty Rogue Special Mode None Game No. 40 Rogue 40 Adventurer 0 Explorer 0 Win Type - Total 1 Types 0/0/0/1/0/0/0/0/0/0 Lore% 20 Gallery% 33 Achievement% 38 Wizard Run 0 Options --------- Layout 1 ASCII 0 Keyboard 0 Movement Mouse Keybinds 0 Fullscreen 1 Font 32/SmallcapsGlow Map View 50x35 Zoom Use 0% Tactical HUD 1 Map Filters NONE Filters NONE Steam 1 RUN: 5b8ad87f-fe52-4114-9e06-b73bb336a0c2